[Event "Elite Hotels Open 2023"]
[Site "Elite Stadshotellet, Kungsgatan 6, Vaxjo, Sweden"]
[Date "2023.02.10"]
[Round "2.17"]
[White "Nilsson, Oliver"]
[Black "Johansson, Gunnar"]
[Result "1-0"]
[TimeControl "15 minutes + 5 seconds per move from move one (Round 1 - 4) / 90 minutes + 30 seconds per move from move one (Round 5 - 8)"]
[WhiteFideId "1730177"]
[BlackFideId "1703501"]
[WhiteElo "1925"]
[BlackElo "2260"]

1. e4 {[%clk 00:15:08]} {[%emt 00:00:01]} c5 {[%clk 00:15:08]} {[%emt
00:00:03]} 2. Nf3 {[%clk 00:15:11]} {[%emt 00:00:02]} e6 {[%clk 00:15:10]}
{[%emt 00:00:02]} 3. g3 {[%clk 00:15:14]} {[%emt 00:00:03]} d5 {[%clk
00:15:01]} {[%emt 00:00:14]} 4. exd5 {[%clk 00:15:17]} {[%emt 00:00:03]} exd5
{[%clk 00:15:04]} {[%emt 00:00:01]} 5. d4 {[%clk 00:15:20]} {[%emt 00:00:01]}
Nf6 {[%clk 00:15:06]} {[%emt 00:00:03]} 6. Bg2 {[%clk 00:15:22]} {[%emt
00:00:04]} Be7 {[%clk 00:15:09]} {[%emt 00:00:01]} 7. dxc5 {[%clk 00:15:25]}
{[%emt 00:00:03]} Bxc5 {[%clk 00:15:12]} {[%emt 00:00:02]} 8. O-O {[%clk
00:15:27]} {[%emt 00:00:02]} O-O {[%clk 00:15:15]} {[%emt 00:00:02]} 9. Bg5
{[%clk 00:14:34]} {[%emt 00:00:59]} Nc6 {[%clk 00:15:03]} {[%emt 00:00:16]} 10.
Nc3 {[%clk 00:14:32]} {[%emt 00:00:06]} d4 {[%clk 00:15:03]} {[%emt 00:00:05]}
11. Ne4 {[%clk 00:14:35]} {[%emt 00:00:02]} Be7 {[%clk 00:15:06]} {[%emt
00:00:02]} 12. Nxf6+ {[%clk 00:13:35]} {[%emt 00:01:06]} Bxf6 {[%clk 00:15:08]}
{[%emt 00:00:02]} 13. Bxf6 {[%clk 00:13:35]} {[%emt 00:00:05]} Qxf6 {[%clk
00:15:11]} {[%emt 00:00:03]} 14. Qd3 {[%clk 00:13:33]} {[%emt 00:00:06]} Bf5
{[%clk 00:14:54]} {[%emt 00:00:22]} 15. Qb3 {[%clk 00:13:30]} {[%emt 00:00:08]}
Rab8 {[%clk 00:13:31]} {[%emt 00:01:28]} 16. Rad1 {[%clk 00:13:24]} {[%emt
00:00:10]} Rfd8 {[%clk 00:13:16]} {[%emt 00:00:20]} 17. Rfe1 {[%clk 00:12:26]}
{[%emt 00:01:05]} h6 {[%clk 00:13:00]} {[%emt 00:00:21]} 18. Nd2 {[%clk
00:07:05]} {[%emt 00:05:25]} Qg6 {[%clk 00:11:59]} {[%emt 00:01:05]} 19. Ne4
{[%clk 00:06:58]} {[%emt 00:00:14]} Re8 {[%clk 00:11:37]} {[%emt 00:00:27]} 20.
f3 {[%clk 00:05:27]} {[%emt 00:01:35]} Re7 {[%clk 00:11:15]} {[%emt 00:00:27]}
21. Re2 {[%clk 00:04:48]} {[%emt 00:00:45]} Rbe8 {[%clk 00:11:04]} {[%emt
00:00:15]} 22. Rde1 {[%clk 00:04:50]} {[%emt 00:00:02]} Be6 {[%clk 00:09:54]}
{[%emt 00:01:16]} 23. Qa4 {[%clk 00:03:22]} {[%emt 00:01:34]} Bc8 {[%clk
00:05:46]} {[%emt 00:04:12]} 24. Kf1 {[%clk 00:01:47]} {[%emt 00:01:41]} Qh5
{[%clk 00:04:43]} {[%emt 00:01:08]} 25. Qa3 {[%clk 00:01:37]} {[%emt 00:00:16]}
Qb5 {[%clk 00:03:40]} {[%emt 00:01:07]} 26. Kg1 {[%clk 00:01:25]} {[%emt
00:00:17]} Qb4 {[%clk 00:02:27]} {[%emt 00:01:18]} 27. Qxb4 {[%clk 00:01:21]}
{[%emt 00:00:08]} Nxb4 {[%clk 00:02:29]} {[%emt 00:00:03]} 28. Nf6+ {[%clk
00:01:23]} {[%emt 00:00:04]} gxf6 {[%clk 00:02:06]} {[%emt 00:00:27]} 29. Rxe7
{[%clk 00:01:27]} {[%emt 00:00:02]} Rxe7 {[%clk 00:02:09]} 30. Rxe7 {[%clk
00:01:31]} {[%emt 00:00:02]} Be6 {[%clk 00:01:41]} {[%emt 00:00:33]} 31. c3
{[%clk 00:00:31]} {[%emt 00:01:05]} dxc3 {[%clk 00:01:01]} {[%emt 00:00:45]} 32.
bxc3 {[%clk 00:00:34]} {[%emt 00:00:02]} Nxa2 {[%clk 00:01:03]} {[%emt
00:00:03]} 33. Rxb7 {[%clk 00:00:36]} {[%emt 00:00:02]} Nxc3 {[%clk 00:00:23]}
{[%emt 00:00:45]} 34. Rxa7 {[%clk 00:00:40]} {[%emt 00:00:02]} Ne2+ {[%clk
00:00:09]} {[%emt 00:00:19]} 35. Kf2 {[%clk 00:00:41]} {[%emt 00:00:03]} Nd4
{[%clk 00:00:13]} {[%emt 00:00:02]} 36. f4 {[%clk 00:00:39]} {[%emt 00:00:06]}
Nf5 {[%clk 00:00:11]} {[%emt 00:00:07]} 37. Bh3 {[%clk 00:00:37]} {[%emt
00:00:07]} Kg7 {[%clk 00:00:12]} {[%emt 00:00:04]} 38. Ra5 {[%clk 00:00:17]}
{[%emt 00:00:26]} Ne7 {[%clk 00:00:09]} {[%emt 00:00:08]} 39. Bxe6 fxe6 {[%clk
00:00:13]} 40. Ra7 {[%clk 00:00:19]} {[%emt 00:00:04]} Kf7 {[%clk 00:00:15]}
{[%emt 00:00:02]} 41. Kf3 {[%clk 00:00:22]} {[%emt 00:00:02]} f5 {[%clk
00:00:19]} {[%emt 00:00:02]} 42. h3 {[%clk 00:00:23]} {[%emt 00:00:04]} h5
{[%clk 00:00:22]} 43. Ra8 {[%clk 00:00:17]} {[%emt 00:00:11]} Kf6 {[%clk
00:00:24]} {[%emt 00:00:03]} 44. Rh8 {[%clk 00:00:18]} {[%emt 00:00:04]} Kg6
{[%clk 00:00:27]} {[%emt 00:00:02]} 45. Ke3 {[%clk 00:00:13]} {[%emt 00:00:10]}
Nc6 {[%clk 00:00:29]} {[%emt 00:00:04]} 46. Rg8+ {[%clk 00:00:13]} {[%emt
00:00:04]} Kf6 {[%clk 00:00:29]} {[%emt 00:00:05]} 47. Rg5 {[%clk 00:00:15]}
{[%emt 00:00:03]} Ne7 {[%clk 00:00:32]} {[%emt 00:00:02]} 48. Rxh5 {[%clk
00:00:17]} {[%emt 00:00:03]} Kg7 {[%clk 00:00:35]} {[%emt 00:00:02]} 49. Rg5+
{[%clk 00:00:20]} {[%emt 00:00:02]} Kf6 {[%clk 00:00:38]} {[%emt 00:00:02]} 50.
h4 {[%clk 00:00:20]} {[%emt 00:00:05]} Kf7 {[%clk 00:00:39]} {[%emt 00:00:05]}
51. h5 {[%clk 00:00:23]} {[%emt 00:00:02]} Nd5+ {[%clk 00:00:41]} {[%emt
00:00:03]} 52. Kd4 {[%clk 00:00:21]} {[%emt 00:00:07]} Nf6 {[%clk 00:00:44]}
{[%emt 00:00:01]} 53. h6 {[%clk 00:00:20]} {[%emt 00:00:06]} Ne4 {[%clk
00:00:44]} {[%emt 00:00:05]} 54. Rg7+ {[%clk 00:00:21]} {[%emt 00:00:05]} Kf6
{[%clk 00:00:44]} {[%emt 00:00:04]} 55. Ra7 {[%clk 00:00:22]} {[%emt 00:00:04]}
Nxg3 {[%clk 00:00:43]} {[%emt 00:00:07]} 56. h7 {[%clk 00:00:25]} {[%emt
00:00:02]} 1-0

[Event "Elite Hotels Open 2023"]
[Site "Elite Stadshotellet, Kungsgatan 6, Vaxjo, Sweden"]
[Date "2023.02.10"]
[Round "2.18"]
[White "Burwick, Malte"]
[Black "Kashwan, Hassan"]
[Result "1-0"]
[TimeControl "15 minutes + 5 seconds per move from move one (Round 1 - 4) / 90 minutes + 30 seconds per move from move one (Round 5 - 8)"]
[WhiteFideId "1702475"]
[BlackFideId "137122555"]
[WhiteElo "2219"]
[BlackElo "1934"]

1. Nf3 {[%clk 00:15:05]} {[%emt 00:49:22]} Nf6 {[%clk 00:12:45]} {[%emt
00:03:32]} 2. g3 {[%clk 00:15:10]} {[%emt 00:00:02]} g6 {[%clk 00:12:47]}
{[%emt 00:00:03]} 3. b4 {[%clk 00:15:09]} {[%emt 00:00:06]} Bg7 {[%clk
00:12:47]} {[%emt 00:00:05]} 4. Bb2 {[%clk 00:15:13]} {[%emt 00:00:02]} a5
{[%clk 00:12:22]} {[%emt 00:00:29]} 5. b5 {[%clk 00:15:16]} {[%emt 00:00:02]}
O-O {[%clk 00:11:50]} {[%emt 00:00:37]} 6. Bg2 {[%clk 00:15:20]} {[%emt
00:00:02]} a4 {[%clk 00:11:03]} {[%emt 00:00:52]} 7. c4 {[%clk 00:14:29]}
{[%emt 00:00:56]} c6 {[%clk 00:10:52]} {[%emt 00:00:15]} 8. O-O {[%clk
00:12:32]} {[%emt 00:02:02]} d5 {[%clk 00:09:36]} {[%emt 00:01:21]} 9. bxc6
{[%clk 00:11:46]} {[%emt 00:00:51]} bxc6 {[%clk 00:08:09]} {[%emt 00:01:31]} 10.
Na3 {[%clk 00:11:43]} {[%emt 00:00:08]} Bf5 {[%clk 00:06:20]} {[%emt 00:01:55]}
11. d3 {[%clk 00:11:47]} {[%emt 00:00:02]} Nbd7 {[%clk 00:06:01]} {[%emt
00:00:23]} 12. Nd4 {[%clk 00:11:34]} {[%emt 00:00:18]} Qb6 {[%clk 00:05:09]}
{[%emt 00:00:57]} 13. Rb1 {[%clk 00:11:35]} {[%emt 00:00:03]} Qa6 {[%clk
00:05:01]} {[%emt 00:00:14]} 14. Nxf5 gxf5 {[%clk 00:05:05]} 15. Qd2 {[%clk
00:11:23]} {[%emt 00:00:11]} Rfb8 {[%clk 00:04:50]} {[%emt 00:00:20]} 16. Rfc1
{[%clk 00:11:11]} {[%emt 00:00:16]} e6 {[%clk 00:04:40]} {[%emt 00:00:16]} 17.
cxd5 {[%clk 00:08:16]} {[%emt 00:03:01]} cxd5 {[%clk 00:04:24]} {[%emt
00:00:21]} 18. Bd4 {[%clk 00:07:53]} {[%emt 00:00:27]} Rxb1 {[%clk 00:03:38]}
{[%emt 00:00:51]} 19. Rxb1 {[%clk 00:07:42]} {[%emt 00:00:15]} Rc8 {[%clk
00:03:27]} {[%emt 00:00:17]} 20. f4 {[%clk 00:07:23]} {[%emt 00:00:24]} Bf8
{[%clk 00:03:18]} {[%emt 00:00:15]} 21. Nc2 {[%clk 00:06:57]} {[%emt 00:00:30]}
Qc6 {[%clk 00:03:12]} {[%emt 00:00:12]} 22. Ne1 {[%clk 00:05:39]} {[%emt
00:01:22]} Bc5 {[%clk 00:03:06]} {[%emt 00:00:11]} 23. Qc3 {[%clk 00:05:17]}
{[%emt 00:00:27]} Bxd4+ {[%clk 00:02:59]} {[%emt 00:00:12]} 24. Qxd4 {[%clk
00:05:21]} {[%emt 00:00:01]} Qc5 {[%clk 00:02:53]} {[%emt 00:00:12]} 25. Qxc5
{[%clk 00:05:20]} {[%emt 00:00:05]} Rxc5 {[%clk 00:02:57]} {[%emt 00:00:02]} 26.
Bf3 {[%clk 00:05:05]} {[%emt 00:00:19]} Rc3 {[%clk 00:02:50]} {[%emt 00:00:12]}
27. Kf2 {[%clk 00:04:57]} {[%emt 00:00:13]} Kf8 {[%clk 00:02:54]} {[%emt
00:00:02]} 28. Ke3 {[%clk 00:04:56]} {[%emt 00:00:06]} Nc5 {[%clk 00:02:50]}
{[%emt 00:00:08]} 29. Kd4 {[%clk 00:04:54]} {[%emt 00:00:07]} Nce4 {[%clk
00:02:13]} {[%emt 00:00:42]} 30. dxe4 {[%clk 00:04:49]} {[%emt 00:00:10]} Rc4+
{[%clk 00:02:11]} {[%emt 00:00:07]} 31. Ke3 {[%clk 00:04:43]} {[%emt 00:00:10]}
fxe4 {[%clk 00:02:13]} {[%emt 00:00:03]} 32. Bg2 {[%clk 00:04:19]} {[%emt
00:00:30]} Ng4+ {[%clk 00:02:11]} {[%emt 00:00:08]} 33. Kd2 {[%clk 00:04:21]}
{[%emt 00:00:02]} Nxh2 {[%clk 00:01:50]} {[%emt 00:00:25]} 34. Nc2 {[%clk
00:04:12]} {[%emt 00:00:15]} Ng4 {[%clk 00:01:51]} {[%emt 00:00:04]} 35. Rb4
{[%clk 00:04:02]} {[%emt 00:00:15]} Rc7 {[%clk 00:01:21]} {[%emt 00:00:35]} 36.
Rxa4 {[%clk 00:04:06]} {[%emt 00:00:02]} h5 {[%clk 00:01:20]} {[%emt 00:00:05]}
37. Ra8+ {[%clk 00:04:02]} {[%emt 00:00:09]} Kg7 {[%clk 00:01:23]} {[%emt
00:00:02]} 38. a4 {[%clk 00:04:01]} {[%emt 00:00:06]} Rc4 {[%clk 00:01:06]}
{[%emt 00:00:23]} 39. a5 {[%clk 00:04:04]} {[%emt 00:00:02]} Ra4 {[%clk
00:01:10]} {[%emt 00:00:01]} 40. a6 {[%clk 00:04:07]} {[%emt 00:00:02]} Ra2
{[%clk 00:01:02]} {[%emt 00:00:13]} 41. Kc3 {[%clk 00:04:07]} {[%emt 00:00:04]}
e5 {[%clk 00:00:47]} {[%emt 00:00:21]} 42. Kb3 {[%clk 00:04:02]} {[%emt
00:00:09]} Rxc2 43. Kxc2 {[%clk 00:04:05]} Ne3+ {[%clk 00:00:50]} 44. Kd2
{[%clk 00:04:07]} {[%emt 00:00:03]} Nxg2 {[%clk 00:00:54]} {[%emt 00:00:02]} 45.
a7 {[%clk 00:04:10]} exf4 {[%clk 00:00:50]} {[%emt 00:00:09]} 46. gxf4 {[%clk
00:04:05]} {[%emt 00:00:10]} Nxf4 {[%clk 00:00:39]} {[%emt 00:00:16]} 47. Re8
{[%clk 00:04:03]} {[%emt 00:00:07]} 1-0

[Event "Elite Hotels Open 2023"]
[Site "Elite Stadshotellet, Kungsgatan 6, Vaxjo, Sweden"]
[Date "2023.02.10"]
[Round "3.1"]
[White "Krantz, Christopher"]
[Black "Galperin, Platon"]
[Result "0-1"]
[TimeControl "15 minutes + 5 seconds per move from move one (Round 1 - 4) / 90 minutes + 30 seconds per move from move one (Round 5 - 8)"]
[BlackTitle "GM"]
[WhiteFideId "1707876"]
[BlackFideId "14165414"]
[WhiteElo "2262"]
[BlackElo "2538"]

1. d4 {[%clk 00:15:07]} {[%emt 00:00:03]} Nf6 {[%clk 00:15:08]} {[%emt
00:00:01]} 2. Nf3 {[%clk 00:15:11]} {[%emt 00:00:03]} g6 {[%clk 00:15:11]}
{[%emt 00:00:02]} 3. b3 {[%clk 00:15:14]} {[%emt 00:00:03]} Bg7 {[%clk
00:15:14]} 4. Bb2 {[%clk 00:15:17]} {[%emt 00:00:02]} O-O {[%clk 00:15:13]}
{[%emt 00:00:06]} 5. e3 {[%clk 00:15:21]} {[%emt 00:00:02]} c5 {[%clk
00:15:15]} {[%emt 00:00:03]} 6. dxc5 {[%clk 00:15:18]} {[%emt 00:00:08]} Na6
{[%clk 00:14:07]} {[%emt 00:01:13]} 7. Bxa6 {[%clk 00:14:39]} {[%emt 00:00:44]}
Qa5+ {[%clk 00:14:04]} {[%emt 00:00:07]} 8. Nbd2 {[%clk 00:14:02]} {[%emt
00:00:42]} Qxa6 {[%clk 00:12:30]} {[%emt 00:01:41]} 9. a3 {[%clk 00:13:02]}
{[%emt 00:01:04]} Rd8 {[%clk 00:11:19]} {[%emt 00:01:16]} 10. Qe2 {[%clk
00:12:39]} {[%emt 00:00:28]} Qc6 {[%clk 00:10:55]} {[%emt 00:00:28]} 11. b4
{[%clk 00:10:24]} {[%emt 00:02:20]} b6 {[%clk 00:10:53]} {[%emt 00:00:08]} 12.
cxb6 {[%clk 00:09:56]} {[%emt 00:00:33]} Qxc2 {[%clk 00:10:45]} {[%emt
00:00:12]} 13. Bd4 {[%clk 00:08:38]} {[%emt 00:01:23]} axb6 {[%clk 00:10:39]}
{[%emt 00:00:12]} 14. Bxb6 {[%clk 00:07:46]} {[%emt 00:00:56]} Nd5 {[%clk
00:08:39]} {[%emt 00:02:06]} 15. Bxd8 {[%clk 00:04:50]} {[%emt 00:03:01]} Bxa1
{[%clk 00:08:41]} {[%emt 00:00:02]} 16. O-O {[%clk 00:04:41]} {[%emt 00:00:14]}
Bf6 {[%clk 00:06:27]} {[%emt 00:02:19]} 17. Nd4 {[%clk 00:02:10]} {[%emt
00:02:37]} Qa2 {[%clk 00:06:28]} {[%emt 00:00:04]} 18. Qc4 {[%clk 00:01:37]}
{[%emt 00:00:38]} Qxc4 {[%clk 00:06:11]} {[%emt 00:00:22]} 19. Nxc4 {[%clk
00:01:40]} {[%emt 00:00:01]} Bxd4 {[%clk 00:06:13]} {[%emt 00:00:03]} 20. Rd1
{[%clk 00:00:47]} {[%emt 00:00:58]} Nc3 {[%clk 00:05:31]} {[%emt 00:00:46]} 21.
Rd3 {[%clk 00:00:30]} {[%emt 00:00:22]} Ba6 {[%clk 00:05:17]} {[%emt 00:00:20]}
22. exd4 {[%clk 00:00:27]} {[%emt 00:00:08]} Ne2+ {[%clk 00:05:18]} {[%emt
00:00:04]} 23. Kh1 {[%clk 00:00:12]} {[%emt 00:00:20]} Bxc4 {[%clk 00:05:19]}
{[%emt 00:00:04]} 0-1

[Event "Elite Hotels Open 2023"]
[Site "Elite Stadshotellet, Kungsgatan 6, Vaxjo, Sweden"]
[Date "2023.02.10"]
[Round "3.2"]
[White "Sivuk, Vitaly"]
[Black "Burwick, Malte"]
[Result "1-0"]
[TimeControl "15 minutes + 5 seconds per move from move one (Round 1 - 4) / 90 minutes + 30 seconds per move from move one (Round 5 - 8)"]
[WhiteTitle "GM"]
[WhiteFideId "14116502"]
[BlackFideId "1702475"]
[WhiteElo "2530"]
[BlackElo "2219"]

1. d4 {[%clk 00:15:07]} {[%emt 00:00:02]} d6 {[%clk 00:14:52]} {[%emt
00:00:19]} 2. e4 {[%clk 00:15:08]} {[%emt 00:00:03]} g6 {[%clk 00:14:56]}
{[%emt 00:00:02]} 3. Nc3 {[%clk 00:15:08]} {[%emt 00:00:05]} Bg7 {[%clk
00:14:58]} {[%emt 00:00:02]} 4. Be3 {[%clk 00:15:09]} {[%emt 00:00:04]} a6
{[%clk 00:15:01]} {[%emt 00:00:02]} 5. f4 {[%clk 00:15:08]} {[%emt 00:00:06]}
b5 {[%clk 00:15:01]} {[%emt 00:00:06]} 6. Nf3 {[%clk 00:15:05]} {[%emt
00:00:08]} Bb7 {[%clk 00:14:57]} {[%emt 00:00:09]} 7. Bd3 {[%clk 00:15:07]}
{[%emt 00:00:02]} Nd7 {[%clk 00:14:50]} {[%emt 00:00:13]} 8. e5 {[%clk
00:15:03]} {[%emt 00:00:08]} Nb6 {[%clk 00:14:34]} {[%emt 00:00:22]} 9. Qe2
{[%clk 00:14:47]} {[%emt 00:00:20]} b4 {[%clk 00:14:14]} {[%emt 00:00:27]} 10.
Ne4 {[%clk 00:14:41]} {[%emt 00:00:10]} Nd5 {[%clk 00:14:06]} {[%emt 00:00:12]}
11. Bd2 {[%clk 00:14:02]} {[%emt 00:00:44]} e6 {[%clk 00:12:47]} {[%emt
00:01:25]} 12. c4 {[%clk 00:13:39]} {[%emt 00:00:27]} bxc3 {[%clk 00:12:50]}
{[%emt 00:00:03]} 13. bxc3 {[%clk 00:13:43]} {[%emt 00:00:01]} Nb6 {[%clk
00:12:12]} {[%emt 00:00:43]} 14. a4 {[%clk 00:13:08]} {[%emt 00:00:39]} a5
{[%clk 00:12:03]} {[%emt 00:00:15]} 15. Bb5+ {[%clk 00:13:00]} {[%emt
00:00:12]} Kf8 {[%clk 00:12:06]} {[%emt 00:00:01]} 16. O-O {[%clk 00:12:46]}
{[%emt 00:00:20]} Bxe4 {[%clk 00:11:36]} {[%emt 00:00:36]} 17. Qxe4 {[%clk
00:12:49]} {[%emt 00:00:02]} d5 {[%clk 00:11:40]} {[%emt 00:00:01]} 18. Qe2
{[%clk 00:12:41]} {[%emt 00:00:11]} Ne7 {[%clk 00:11:44]} {[%emt 00:00:02]} 19.
Bc1 {[%clk 00:12:27]} {[%emt 00:00:20]} h6 {[%clk 00:11:34]} {[%emt 00:00:15]}
20. Ba3 {[%clk 00:12:29]} {[%emt 00:00:03]} Kg8 {[%clk 00:11:37]} {[%emt
00:00:01]} 21. Nd2 {[%clk 00:12:09]} {[%emt 00:00:25]} Bf8 {[%clk 00:11:40]}
{[%emt 00:00:04]} 22. Nb3 {[%clk 00:11:57]} {[%emt 00:00:16]} h5 {[%clk
00:11:35]} {[%emt 00:00:10]} 23. Nc5 {[%clk 00:11:15]} {[%emt 00:00:47]} Nf5
{[%clk 00:10:16]} {[%emt 00:01:23]} 24. g3 {[%clk 00:11:17]} {[%emt 00:00:03]}
Ra7 {[%clk 00:09:33]} {[%emt 00:00:49]} 25. Qd3 {[%clk 00:11:15]} {[%emt
00:00:07]} Qc8 {[%clk 00:09:16]} {[%emt 00:00:22]} 26. Qf3 {[%clk 00:10:43]}
{[%emt 00:00:36]} Kg7 {[%clk 00:07:39]} {[%emt 00:01:43]} 27. Ra2 {[%clk
00:10:43]} {[%emt 00:00:05]} c6 {[%clk 00:07:26]} {[%emt 00:00:18]} 28. Bd3
{[%clk 00:10:44]} {[%emt 00:00:03]} Nc4 {[%clk 00:07:30]} {[%emt 00:00:02]} 29.
Bxc4 dxc4 {[%clk 00:07:34]} 30. Rb1 {[%clk 00:10:17]} {[%emt 00:00:15]} Bxc5
{[%clk 00:06:27]} {[%emt 00:01:13]} 31. Bxc5 {[%clk 00:10:18]} {[%emt
00:00:04]} Rb7 {[%clk 00:06:31]} 32. Rab2 {[%clk 00:10:11]} {[%emt 00:00:12]}
Rb3 {[%clk 00:05:12]} {[%emt 00:01:24]} 33. Rxb3 {[%clk 00:09:59]} {[%emt
00:00:17]} cxb3 34. Rxb3 {[%clk 00:10:02]} Qa6 {[%clk 00:04:07]} {[%emt
00:01:13]} 35. Qf1 {[%clk 00:10:05]} {[%emt 00:00:02]} Qxf1+ {[%clk 00:04:11]}
{[%emt 00:00:01]} 36. Kxf1 {[%clk 00:10:08]} {[%emt 00:00:01]} h4 {[%clk
00:04:15]} {[%emt 00:00:01]} 37. Kg2 {[%clk 00:09:24]} {[%emt 00:00:48]} hxg3
{[%clk 00:03:52]} {[%emt 00:00:29]} 38. hxg3 {[%clk 00:09:28]} {[%emt
00:00:02]} Ne3+ {[%clk 00:03:53]} {[%emt 00:00:05]} 39. Kf3 {[%clk 00:09:25]}
{[%emt 00:00:06]} Nc4 {[%clk 00:03:56]} {[%emt 00:00:03]} 40. Rb7 {[%clk
00:08:53]} {[%emt 00:00:37]} Rh2 {[%clk 00:03:43]} {[%emt 00:00:15]} 41. Be7
{[%clk 00:08:12]} {[%emt 00:00:48]} Nd2+ {[%clk 00:00:41]} {[%emt 00:03:09]} 42.
Ke3 {[%clk 00:08:15]} {[%emt 00:00:01]} Nf1+ {[%clk 00:00:42]} {[%emt
00:00:03]} 43. Kd3 {[%clk 00:08:13]} {[%emt 00:00:08]} Rd2+ {[%clk 00:00:45]}
{[%emt 00:00:02]} 44. Kc4 {[%clk 00:08:17]} Ne3+ {[%clk 00:00:49]} {[%emt
00:00:01]} 45. Kc5 {[%emt 00:00:23]} Nd5 {[%clk 00:00:28]} {[%emt 00:00:04]} 46.
c4 {[%clk 00:08:15]} {[%emt 00:00:10]} Rc2 {[%clk 00:00:25]} {[%emt 00:00:08]}
47. Bd8 {[%clk 00:07:31]} {[%emt 00:00:49]} Kf8 {[%clk 00:00:09]} {[%emt
00:00:22]} 48. Bf6 {[%clk 00:06:16]} {[%emt 00:01:19]} 1-0

[Event "Elite Hotels Open 2023"]
[Site "Elite Stadshotellet, Kungsgatan 6, Vaxjo, Sweden"]
[Date "2023.02.10"]
[Round "3.3"]
[White "Rasti, Arvin"]
[Black "Abdrlauf, Elham"]
[Result "0-1"]
[TimeControl "15 minutes + 5 seconds per move from move one (Round 1 - 4) / 90 minutes + 30 seconds per move from move one (Round 5 - 8)"]
[BlackTitle "IM"]
[WhiteFideId "1741160"]
[BlackFideId "1533533"]
[WhiteElo "2211"]
[BlackElo "2527"]

1. d4 {[%clk 00:15:08]} {[%emt 00:00:03]} Nf6 {[%clk 00:15:09]} {[%emt
00:00:01]} 2. Nf3 {[%clk 00:15:10]} {[%emt 00:00:03]} d5 {[%clk 00:15:11]}
{[%emt 00:00:04]} 3. c4 {[%clk 00:15:13]} {[%emt 00:00:01]} e6 {[%clk
00:15:15]} {[%emt 00:00:01]} 4. Bg5 {[%clk 00:15:16]} {[%emt 00:00:02]} Be7
{[%clk 00:15:18]} {[%emt 00:00:02]} 5. e3 {[%clk 00:15:20]} {[%emt 00:00:01]}
O-O {[%clk 00:15:20]} {[%emt 00:00:02]} 6. Qc2 {[%clk 00:15:24]} {[%emt
00:00:03]} Nbd7 {[%clk 00:15:13]} {[%emt 00:00:11]} 7. Nc3 {[%clk 00:15:23]}
{[%emt 00:00:05]} c6 {[%clk 00:15:12]} {[%emt 00:00:06]} 8. Rd1 {[%clk
00:15:12]} {[%emt 00:00:16]} h6 {[%clk 00:15:09]} {[%emt 00:00:08]} 9. Bh4
{[%clk 00:15:10]} {[%emt 00:00:07]} b6 {[%clk 00:14:23]} {[%emt 00:00:52]} 10.
a3 {[%clk 00:14:50]} {[%emt 00:00:25]} Ba6 {[%clk 00:13:15]} {[%emt 00:01:13]}
11. Qa4 {[%clk 00:14:23]} {[%emt 00:00:32]} Bb7 {[%clk 00:12:38]} {[%emt
00:00:41]} 12. Be2 {[%clk 00:14:07]} {[%emt 00:00:21]} a5 {[%clk 00:11:44]}
{[%emt 00:01:00]} 13. Qc2 {[%clk 00:13:41]} {[%emt 00:00:31]} Rc8 {[%clk
00:11:27]} {[%emt 00:00:22]} 14. O-O {[%clk 00:13:36]} {[%emt 00:00:10]} c5
{[%clk 00:10:38]} {[%emt 00:00:54]} 15. dxc5 {[%clk 00:12:53]} {[%emt
00:00:48]} Nxc5 {[%clk 00:10:39]} {[%emt 00:00:03]} 16. Bxf6 {[%clk 00:11:11]}
{[%emt 00:01:47]} Bxf6 {[%clk 00:10:37]} {[%emt 00:00:07]} 17. cxd5 {[%clk
00:11:11]} {[%emt 00:00:05]} exd5 {[%clk 00:10:26]} {[%emt 00:00:17]} 18. Qf5
{[%clk 00:10:40]} {[%emt 00:00:36]} Bxc3 {[%clk 00:09:28]} {[%emt 00:01:03]} 19.
bxc3 {[%clk 00:10:44]} {[%emt 00:00:01]} Ne4 {[%clk 00:09:19]} {[%emt
00:00:14]} 20. Bd3 {[%clk 00:10:30]} {[%emt 00:00:19]} Qf6 {[%clk 00:08:13]}
{[%emt 00:01:11]} 21. Qxf6 {[%clk 00:09:41]} {[%emt 00:00:54]} Nxf6 {[%clk
00:06:50]} {[%emt 00:01:28]} 22. Rc1 {[%clk 00:09:07]} {[%emt 00:00:39]} Ne4
{[%clk 00:06:44]} {[%emt 00:00:11]} 23. Bxe4 {[%clk 00:08:40]} {[%emt
00:00:31]} dxe4 {[%clk 00:06:48]} {[%emt 00:00:01]} 24. Nd4 {[%clk 00:08:44]}
{[%emt 00:00:01]} Ba6 {[%clk 00:06:52]} {[%emt 00:00:01]} 25. Rfd1 {[%clk
00:08:34]} {[%emt 00:00:15]} Bd3 {[%clk 00:06:56]} {[%emt 00:00:01]} 26. Rd2
{[%clk 00:08:34]} {[%emt 00:00:05]} Rc5 {[%clk 00:06:16]} {[%emt 00:00:45]} 27.
Rb2 {[%clk 00:05:50]} {[%emt 00:02:50]} Rfc8 {[%clk 00:06:17]} {[%emt
00:00:03]} 28. Rxb6 {[%clk 00:03:48]} {[%emt 00:02:09]} Rxc3 {[%clk 00:06:21]}
29. Rxc3 {[%clk 00:03:52]} {[%emt 00:00:01]} Rxc3 {[%clk 00:06:25]} {[%emt
00:00:01]} 30. h3 {[%clk 00:03:40]} {[%emt 00:00:17]} Rxa3 {[%clk 00:06:29]}
{[%emt 00:00:01]} 31. Nc6 {[%clk 00:03:15]} {[%emt 00:00:30]} a4 {[%clk
00:06:04]} {[%emt 00:00:30]} 32. Rb8+ {[%clk 00:02:58]} {[%emt 00:00:21]} Kh7
{[%clk 00:06:06]} {[%emt 00:00:04]} 33. Ne5 {[%clk 00:03:00]} {[%emt 00:00:04]}
f6 {[%clk 00:05:36]} {[%emt 00:00:34]} 34. Nd7 {[%clk 00:02:48]} {[%emt
00:00:16]} Ra1+ {[%clk 00:04:35]} {[%emt 00:01:07]} 35. Kh2 {[%clk 00:02:52]}
{[%emt 00:00:01]} a3 {[%clk 00:04:39]} {[%emt 00:00:01]} 36. Ra8 {[%clk
00:01:34]} {[%emt 00:01:23]} a2 {[%clk 00:04:31]} {[%emt 00:00:12]} 37. Kg3
{[%clk 00:00:35]} {[%emt 00:01:04]} Bc4 {[%clk 00:03:59]} {[%emt 00:00:38]} 38.
Kf4 {[%clk 00:00:13]} {[%emt 00:00:27]} Rd1 {[%clk 00:03:44]} {[%emt 00:00:19]}
39. Nf8+ {[%clk 00:00:10]} {[%emt 00:00:08]} Kg8 {[%clk 00:03:48]} 0-1